Cogmind - Beta 14 @@@ ROGUE MODE // 2024.12.30 @ 19:23:49 Player: DreamCore Result: Destroyed by D-53 Grenadier with Mini Grenade Launcher Performance ------------- Evolutions (0) 0 Regions Visited (4) 800 Robots Destroyed (3) 15 Value Destroyed (87) 87 Prototype IDs (0) 0 Alien Tech Used (0) 0 Bonus (0) 0 TOTAL SCORE: 902 Bonus ------- None Cogmind --------- Core Integrity 0/250 Matter 297/300 Energy 100/100 System Corruption 0% Temperature Cool (0) Movement Core (100) Ox1 Location -9/Mines Parts ------- > --- POWER (1) -------- (None) > --- PROPULSION (2) --- (None) > --- UTILITY (2) ------ Small Storage Unit > --- WEAPON (2) ------- (None) > --- INVENTORY (8) ---- Signal Interpreter Small Laser Beam Rifle Grenade Launcher Peak State ------------ > --- POWER ------------ Ion Engine > --- PROPULSION ------- Aluminum Leg Aluminum Leg > --- UTILITY ---------- Small Storage Unit Light Armor Plating > --- WEAPON ----------- Light Assault Rifle Light Assault Rifle > --- INVENTORY -------- Ion Engine Light Treads Light Treads Aluminum Leg Aluminum Leg Medium Matter Pod Makeshift Salvage Targeting Computer Small Laser [Rating: 8] Favorites ----------- Power Ion Engine Engine Ion Engine Propulsion Aluminum Leg Leg Aluminum Leg Utility Small Storage Unit Storage Small Storage Unit Protection Light Armor Plating Weapon Light Assault Rifle Ballistic Gun Light Assault Rifle Build | -11 -10 -10 -10 -9 ------- Run | Yrd Mat Min Exi Min Slots Evolved . | . . . . . Power . | . . . . . Propulsion . | . . . . . Utility . | . . . . . Weapon . | . . . . . Parts Attached 6 | . 1 1 . 4 Power 1 | . . . . 1 Engine 1 | . . . . 1 Core . | . . . . . Reactor . | . . . . . Propulsion 4 | . . 1 . 3 Treads . | . . . . . Leg 4 | . . 1 . 3 Wheel . | . . . . . Hover . | . . . . . Flight . | . . . . . Utility 1 | . 1 . . . Device . | . . . . . Storage . | . . . . . Processor . | . . . . . Hackware . | . . . . . Protection 1 | . 1 . . . Artifact . | . . . . . Weapon . | . . . . . Energy Gun . | . . . . . Energy Cannon . | . . . . . Ballistic Gun . | . . . . . Ballistic Cannon . | . . . . . Launcher . | . . . . . Special Weapon . | . . . . . Impact Weapon . | . . . . . Slashing Weapon . | . . . . . Piercing Weapon . | . . . . . Special Melee Weapon . | . . . . . Unidentified Prototypes . | . . . . . Parts Lost 10 | . . . . 10 Power 2 | . . . . 2 Propulsion 5 | . . . . 5 Utility 1 | . . . . 1 Weapon 2 | . . . . 2 Highest Loss Streak 9 | . . . . 9 To Critical Strikes . | . . . . . Average Slot Usage (%) 95 | . 92 100 100 85 Engine 13 | . 14 14 14 10 Leg 26 | . 28 28 28 23 Storage 14 | . 14 14 14 14 Protection 12 | . 7 14 14 10 Ballistic Gun 27 | . 28 28 28 24 Peak Build Rating 8 | 6 7 7 8 8 Average Rating 7 | 6 6 7 7 6 On Entrance 6 | 6 6 7 7 8 Naked Turns . | . . . . . Heaviest Build 15 | 12 15 15 15 15 Greatest Support 30 | 20 20 20 20 30 Greatest Overweight (x) 1 | . . . . 1 Average Overweight (x) . | . . . . . Largest Inventory Capacity 8 | 8 8 8 8 8 Average Capacity 8 | 8 8 8 8 8 Most Carried 8 | 6 8 8 8 8 Average Carried 7 | 6 6 7 7 7 Final Capacity 8 | 8 8 8 8 8 Final Carried 8 | 6 8 8 8 4 Class Distribution -------------------- 100% | Mutant Dominant Class ---------------- Mutant | -10/Materials Mutant | -10/Mines Mutant | -10/Exiles Mutant | -9/Mines Resources | -11 -10 -10 -10 -9 ----------- Run | Yrd Mat Min Exi Min Matter Collected 348 | 200 . 148 . . Remotely . | . . . . . Salvage Created 169 | . . 169 . . Parts 7 | . . 7 . . Haulers Intercepted . | . . . . . Recyclers Shooed 1 | . . 1 . . Parts Field Recycled . | . . . . . Retrieved Matter . | . . . . . Parts Self-Destructed . | . . . . . Prevented . | . . . . . Kills | -11 -10 -10 -10 -9 ------- Run | Yrd Mat Min Exi Min Combat Hostiles Destroyed 2 | . . 2 . . Guns 2 | . . 2 . . Classes Destroyed 2 | . . 2 . . Recycler 1 | . . 1 . . Grunt 2 | . . 2 . . Best Kill Streak 2 | . . 2 . . Combat Bots Only 2 | . . 2 . . Max Kills in Single Turn 1 | . . 1 . . Gunslinging . | . . . . . Exploded . | . . . . . Melee . | . . . . . Uniques/NPCs Destroyed . | . . . . . Combat | -11 -10 -10 -10 -9 -------- Run | Yrd Mat Min Exi Min Hostile Shots Fired 44 | . . 12 . 32 Missed 6 | . . 2 . 4 Damage Taken 1124 | . . 141 . 983 Core 276 | . . . . 276 Absorbed by Shields . | . . . . . Core Remaining (%) 100 | 100 . . . . Volleys Fired 15 | . . 14 . 1 Largest 2 | . . 2 . 1 Hottest 40 | . . 40 . 20 Shots Fired 29 | . . 28 . 1 Gun 29 | . . 28 . 1 Cannon . | . . . . . Launcher . | . . . . . Special . | . . . . . Kinetic 29 | . . 28 . 1 Thermal . | . . . . . Explosive . | . . . . . Electromagnetic . | . . . . . Robot Hit Streak 6 | . . 6 . 2 Robot Miss Streak 2 | . . 2 . . Penetration Max . | . . . . . Secondary Targets . | . . . . . Shots Hit Robots 21 | . . 20 . 1 Core Hits 11 | . . 9 . 2 Critical Kills . | . . . . . Critical Parts Destroyed . | . . . . . Critical Strikes . | . . . . . Melee Attacks . | . . . . . Impact . | . . . . . Slashing . | . . . . . Piercing . | . . . . . Sneak Attacks . | . . . . . Combat Hostiles . | . . . . . Follow-up Attacks . | . . . . . Damage Inflicted 177 | . . 164 . 13 Guns 174 | . . 164 . 10 Cannons . | . . . . . Explosions . | . . . . . Melee . | . . . . . Ramming 3 | . . . . 3 Kinetic 174 | . . 164 . 10 Thermal . | . . . . . Explosive . | . . . . . Electromagnetic . | . . . . . Impact . | . . . . . Slashing . | . . . . . Piercing . | . . . . . Highest Corruption . | . . . . . Average Corruption . | . . . . . Corruption Purged . | . . . . . Corruption Blocked . | . . . . . Overload Shots . | . . . . . Overflow Damage . | . . . . . Projectiles . | . . . . . Explosions . | . . . . . Melee . | . . . . . Knockbacks . | . . . . . Impact . | . . . . . Kinetic . | . . . . . Secondary . | . . . . . Self-Inflicted Damage 1 | . . . . 1 Shots . | . . . . . Rammed 1 | . . . . 1 Targets Rammed 1 | . . . . 1 Kicked . | . . . . . Crushed . | . . . . . Highest Temperature 42 | . . 42 . . Average Temperature 22 | . . 22 . . Received Heat Transfer 81 | . . 81 . . Siege Activations . | . . . . . Robots Corrupted . | . . . . . Combat Hostiles . | . . . . . Parts Fried . | . . . . . Impact Corruptions . | . . . . . Robots Melted . | . . . . . Combat Hostiles . | . . . . . Parts Melted . | . . . . . Heat Transferred . | . . . . . Parts Sabotaged . | . . . . . Parts Stolen . | . . . . . Parts Stripped . | . . . . . Power Chain Reactions . | . . . . . Alert | -11 -10 -10 -10 -9 ------- Run | Yrd Mat Min Exi Min Peak Influence 62 | . 19 62 . 15 Initial 7 | . . 7 . . Average 15 | . 15 48 . 2 Maximum Alert Level . | . . . . . Low Security (%) 100 | 100 100 100 . 100 Level 1 . | . . . . . Level 2 . | . . . . . Level 3 . | . . . . . Level 4 . | . . . . . Level 5 . | . . . . . High Security . | . . . . . Max Security . | . . . . . Squads Dispatched . | . . . . . Investigation . | . . . . . Extermination . | . . . . . Reinforcement . | . . . . . Assault . | . . . . . Garrison . | . . . . . Intercept . | . . . . . Searches Triggered . | . . . . . Construction Impeded . | . . . . . Haulers Reinforced . | . . . . . Active Scanning Responses . | . . . . . Cargo Convoy Interrupts . | . . . . . Stealth | -11 -10 -10 -10 -9 --------- Run | Yrd Mat Min Exi Min Distress Signals . | . . . . . Communications Jammed . | . . . . . Distress Signals . | . . . . . Times Spotted 8 | . . 2 . 6 Peak Tracking Total 3 | . . 2 . 3 Tactical Retreats 1 | . . . . 1 Traps | -11 -10 -10 -10 -9 ------- Run | Yrd Mat Min Exi Min Traps Triggered . | . . . . . Indirectly . | . . . . . Trap Hack Attempts . | . . . . . Triggered . | . . . . . Disarmed . | . . . . . Reprogrammed . | . . . . . Reused . | . . . . . Traps Extracted . | . . . . . Installed . | . . . . . Triggered . | . . . . . Machines | -11 -10 -10 -10 -9 ---------- Run | Yrd Mat Min Exi Min Machines Disabled . | . . . . . Max in Single Turn . | . . . . . Machines Repaired . | . . . . . Machines Dismantled . | . . . . . Machines Sabotaged . | . . . . . Overloaded Fab Kills . | . . . . . Hacking | -11 -10 -10 -10 -9 --------- Run | Yrd Mat Min Exi Min Machines Accessed 9 | . 5 . 4 . Terminals 4 | . 4 . . . Fabricators . | . . . . . Repair Stations . | . . . . . Recycling Units 1 | . 1 . . . Scanalyzers . | . . . . . Garrison Access . | . . . . . Total Hacks 55 | . 6 . 49 . Successful 53 | . 4 . 49 . Failed 2 | . 2 . . . Catastrophic . | . . . . . Database Lockouts . | . . . . . Manual 4 | . . . 4 . Terminals 5 | . 5 . . . Fabricators . | . . . . . Repair Stations . | . . . . . Recycling Units 1 | . 1 . . . Scanalyzers . | . . . . . Garrison Access . | . . . . . Terminal Hacks 52 | . 3 . 49 . Record 50 | . 1 . 49 . Hauler Manifests 1 | . 1 . . . Zone Layout 1 | . 1 . . . Fabricator Hacks . | . . . . . Repair Station Hacks . | . . . . . Recycling Unit Hacks 1 | . 1 . . . Retrieve Components 1 | . 1 . . . Scanalyzer . | . . . . . Garrison Access Hacks . | . . . . . Unauthorized Hacks . | . . . . . Terminals . | . . . . . Fabricators . | . . . . . Repair Stations . | . . . . . Recycling Units . | . . . . . Scanalyzers . | . . . . . Garrison Access . | . . . . . Data Cores Recovered . | . . . . . Used . | . . . . . Hacking Detections 2 | . 2 . . . Full Trace Events . | . . . . . Feedback Events . | . . . . . Feedback Blocked . | . . . . . Robot Schematics Acquired . | . . . . . Robots Built . | . . . . . Authchips . | . . . . . Time . | . . . . . Total Robot Build Rating . | . . . . . Part Schematics Acquired . | . . . . . Parts Built . | . . . . . Authchips . | . . . . . Time . | . . . . . Total Part Build Rating . | . . . . . Parts Repaired . | . . . . . Time . | . . . . . Parts Recycled . | . . . . . Recycled Matter . | . . . . . Retrieved Matter . | . . . . . Retrieved Components 2 | . 2 . . . Parts Scanalyzed . | . . . . . Part Schematics Acquired . | . . . . . Parts Damaged . | . . . . . Bothacking | -11 -10 -10 -10 -9 ------------ Run | Yrd Mat Min Exi Min Used RIF Installer . | . . . . . Robots Hacked . | . . . . . Non-combat . | . . . . . Combat . | . . . . . Robot Hacks Applied . | . . . . . Relay Couplers Released . | . . . . . Fabnet Peak Effective % . | . . . . . Robots Rewired . | . . . . . Allies Hacked . | . . . . . Hacks Repelled . | . . . . . Allies | -11 -10 -10 -10 -9 -------- Run | Yrd Mat Min Exi Min Total Allies . | . . . . . Largest Group . | . . . . . Highest-Rated Group . | . . . . . Highest-Rated Ally . | . . . . . Total Orders . | . . . . . Ally Attacks . | . . . . . Total Damage . | . . . . . Kills . | . . . . . Allies Corrupted . | . . . . . Allies Melted . | . . . . . Intel | -11 -10 -10 -10 -9 ------- Run | Yrd Mat Min Exi Min Robot Analysis Total . | . . . . . Derelict Logs Recovered 1 | . . . . 1 Drone Launches . | . . . . . Drone Recoveries . | . . . . . Exploration | -11 -10 -10 -10 -9 ------------- Run | Yrd Mat Min Exi Min Turns Passed 1197 | 83 168 133 544 269 Spaces Moved 945 | 70 137 70 448 220 Core 37 | . . . . 37 Treads . | . . . . . Legs 908 | 70 137 70 448 183 Wheels . | . . . . . Hover . | . . . . . Flight . | . . . . . Fastest Speed 100 | 120 120 120 120 100 Average Speed 119 | 120 120 120 120 117 Slowest Speed 140 | 120 120 120 120 140 Overloaded Moves . | . . . . . Propulsion Burnouts . | . . . . . Robots Hopped . | . . . . . Cave-ins Triggered . | . . . . . Exploration Rate (%) 37 | 3 37 14 90 45 Regions Visited 4 Branch Regions 3 Pre-discovered Areas 1 | . . . 1 . Known Exits Taken . | . . . . . Unknown Exits Taken 4 | 1 1 1 1 . Scrap Searched 2 | . . . . 2 Spaces Dug . | . . . . . Terrain Destroyed . | . . . . . Melee . | . . . . . Projectile . | . . . . . AOE . | . . . . . Terrain Rammed . | . . . . . Walls Destroyed . | . . . . . Machines Disabled . | . . . . . Actions | -11 -10 -10 -10 -9 --------- Run | Yrd Mat Min Exi Min Total 993 | 69 140 98 456 230 Wait 7 | . . 7 . . Move 941 | 69 136 69 447 220 Hop . | . . . . . Pick Up 11 | . 3 3 3 2 Fast Attach . | . . . . . Attach 5 | . 1 . . 4 Detach . | . . . . . Swap 1 | . . 1 . . Drop 9 | . . 4 3 2 Fire 15 | . . 14 . 1 Melee . | . . . . . Ram 1 | . . . . 1 Kick . | . . . . . Crush . | . . . . . Escape Stasis . | . . . . . Rewire 3 | . . . 3 . Trap . | . . . . . Miscellaneous . | . . . . . Route ------- -11/Scrapyard -10/Materials -10/Mines -10/Exiles -9/Mines History --------- Turn | Location | Event 1 | -11/Scrapyard | Discovered new exit (range 2) 84 | -11/Scrapyard | Entered Materials 224 | -10/Materials | Discovered new exit (range 12) 252 | -10/Materials | Entered Mines 318 | -10/Mines | Build established: Mutant 377 | -10/Mines | Deemed a non-threat by the Exiles lab entrance 377 | -10/Mines | Discovered new exit (range 5) 385 | -10/Mines | Entered Exiles 385 | -10/Exiles | Found Exiles lab destroyed 501 | -10/Exiles | Learned location of Zion (-6) 920 | -10/Exiles | Discovered new exit (range 10) 929 | -10/Exiles | Entered Mines 950 | -9/Mines | Assembled infested the area 955 | -9/Mines | Assisted by a Guerilla fighting off Assembled 1148 | -9/Mines | Core integrity fell below 50% 1157 | -9/Mines | Core integrity fell below 20% 1171 | -9/Mines | Learned location of 2 exits from Materials 1189 | -9/Mines | Lost 9 parts (2p5n1u1w) 1198 | -9/Mines | Destroyed by D-53 Grenadier with Mini Grenade Launcher Last Messages --------------- 01134_ The unstable cave ceiling collapses. 01134_ U-05 Engineer lays Concrete. 01140_ The unstable cave ceiling collapses. 01140_ U-05 Engineer lays Concrete. 01140_ K-01 Serf destroyed. 01140_ U-05 Engineer destroyed. 01142_ Aluminum Leg destroyed. 01143_ The unstable cave ceiling collapses. 01143_ Ion Engine destroyed. 01145_ The unstable cave ceiling collapses. 01145_ Aluminum Leg destroyed. 01148_ The unstable cave ceiling collapses. 01158_ Mak. Leg destroyed. 01162_ The unstable cave ceiling collapses. 01171_ Acquired derelict log, extracted data. Data stored: Materials exits (x2). 01174_ T-07 Excavator is excavating. 01196_ Lgt. Assault Rifle destroyed. 01197_ Slammed into as-86128. 01198_ as-86128 destroyed. Map ----- +----------------------------------------------------+ | ## ##??? ####??????????????????????? | | #### ## #?????????????????????? | | = # ????????????????????? | | ##=????????????????????? | | !?????????????????????? | | #??????????????????????????? | | # " #?###???????????????????????? | | # #???????????????????????? | | # #????????????????????????? | | ###????????????????????????? | | # % #??????????????????????????? | | # ####### # ##??????????????????????????? | | #?????# ####???????????????????????????? | | ##?????# ###????????????????????????????? | | ##?????#### #????????????????????????????? | | ##???????###### #####????????????????????????? | | #????????????# #????????????????????????? | | #????????????#### #????????????????????????? | | % #???????????????# #????????????????????????? | | ##??????????##???# #????????????????????????? | | #???????????# #### #????????????????????????? | | #???????????# #????????????????????????? | | ##????????????# ##????????????????????????? | | # #?????????????## ####????#????????????????????? | | # #??????????????# #??####k#????????????????????? | | # #??????????????# #??# @ #????????????????????? | | # #??????????????# #??#% ###????????????????????? | | # #??????????????# #??#d#???????????????????????? | | # #??????????????# #?## #???????????????????????? | | # #??????????##### ### ##??????????????????????? | | # #?????????## #??????????????????????? | | # #?????????# #??????????????????????? | | # ]##????????# ##??????????????????????? | | #????????## ###???????????????????????? | | #????????# ####?????????????????????????? | | ! ! #????????# #????????????????????????????? | | #???????# ?????????????????????????????? | | ## ! #??????# ?????????????????????????????? | | ?## ##??????## #?????????????????????????????? | | ???###????????# #?????????????????????????????? | | ??????????????#####??????????????????????????????? | | ?????????????????????????????????????????????????? | | ?????????????????????????????????????????????????? | | ?????????????????????????????????????????????????? | | | | | | | | | | | | | +----------------------------------------------------+ Best States ------------- Heat Dissipation 25 Energy Generation 10 Energy Capacity 250 Matter Stores 300 Matter Capacity 300 Sight Range 16 Terrain Scan Density 10 Armor Coverage 150 Evasion (%) 55 Item Schematics ----------------- None Robot Schematics ------------------ None Fabricated ------------ Nothing Alien Tech Used ----------------- None Achievements -------------- None Challenges ------------ None Game ------ Seed RecyclingJunkWarhead Manual? 0 Play Time 00:27:17 Cumulative 26.1 hours Start 2024.12.30 @ 18:53:03 End 2024.12.30 @ 19:23:49 Sessions 1 Manual Loads 0 Difficulty Rogue Special Mode None Game No. 40 Rogue 40 Adventurer 0 Explorer 0 Win Type - Total 0 Types 0/0/0/0/0/0/0/0/0 Lore% 17 Gallery% 25 Achievement% 23 Wizard Run 0 Options --------- Layout 1 ASCII 0 Keyboard 0 Movement Mouse Keybinds 0 Fullscreen 0 Font 20/SmallcapsGlow Map View 76x50 Zoom Use 0% Tactical HUD 1 Map Filters NONE Filters NONE Steam 1 RUN: ffc75d7a-360c-46b2-acdf-2cd90653959e